[Event "*** Titled Tuesday 3|2 Blitz"]
[Site "Chess.com"]
[Date "2016.03.01"]
[Round "1"]
[White "alturas_pacificas"]
[Black "bugsbunny444"]
[Result "1/2-1/2"]
[WhiteElo "2181"]
[BlackElo "2463"]
[TimeControl "180+2"]
[EndTime "11:34:20 PST"]
[Termination "Game drawn by repetition"]

1. d4 {[%clk 0:02:59.1]} 1... e6 {[%clk 0:03:01]} 2. Bf4 {[%clk 0:02:56.2]} 2...
Nf6 {[%clk 0:03:00.8]} 3. e3 {[%clk 0:02:54.5]} 3... d5 {[%clk 0:03:02]} 4. Nd2
{[%clk 0:02:54]} 4... c5 {[%clk 0:02:53.6]} 5. c3 {[%clk 0:02:50.4]} 5... Nc6
{[%clk 0:02:54.5]} 6. Ngf3 {[%clk 0:02:50.7]} 6... Bd6 {[%clk 0:02:54.6]} 7. Bg3
{[%clk 0:02:51.1]} 7... O-O {[%clk 0:02:54]} 8. Bd3 {[%clk 0:02:51.8]} 8... Qe7
{[%clk 0:02:54.5]} 9. Ne5 {[%clk 0:02:52.4]} 9... Nd7 {[%clk 0:02:56.1]} 10.
Nxd7 {[%clk 0:02:53]} 10... Qxd7 {[%clk 0:02:57.4]} 11. Bxd6 {[%clk 0:02:54.5]}
11... Qxd6 {[%clk 0:02:58.6]} 12. dxc5 {[%clk 0:02:55.1]} 12... Qxc5 {[%clk
0:02:57.6]} 13. Bxh7+ {[%clk 0:02:54.7]} 13... Kxh7 {[%clk 0:02:58.2]} 14. Qh5+
{[%clk 0:02:56]} 14... Kg8 {[%clk 0:02:59.4]} 15. Ne4 {[%clk 0:02:57.4]} 15...
g6 {[%clk 0:02:47.6]} 16. Qg5 {[%clk 0:02:10.9]} 16... Qe7 {[%clk 0:02:44.7]}
17. Nf6+ {[%clk 0:02:11.3]} 17... Kg7 {[%clk 0:02:45.7]} 18. Nh5+ {[%clk
0:02:11.9]} 18... Kg8 {[%clk 0:02:43]} 19. Nf6+ {[%clk 0:02:12.7]} 19... Kg7
{[%clk 0:02:41.3]} 20. Nh5+ {[%clk 0:02:13.9]} 20... Kh7 {[%clk 0:02:31.4]} 21.
Nf6+ {[%clk 0:02:14]} 21... Kg7 {[%clk 0:02:31.9]} 22. Nh5+ {[%clk 0:02:14.8]}
22... Kh7 {[%clk 0:02:27.7]} 23. Nf6+ {[%clk 0:02:15]} 23... Kg7 {[%clk
0:02:29]} 24. Nh5+ {[%clk 0:02:15.5]} 24... Kh7 {[%clk 0:02:29.5]} 25. Nf6+
{[%clk 0:02:16.2]} 25... Kg7 {[%clk 0:02:30.3]} 1/2-1/2

[Event "*** Titled Tuesday 3|2 Blitz"]
[Site "Chess.com"]
[Date "2016.03.01"]
[Round "1"]
[White "pedromartinez91"]
[Black "Yaacovn"]
[Result "0-1"]
[WhiteElo "2343"]
[BlackElo "2624"]
[TimeControl "180+2"]
[EndTime "11:35:01 PST"]
[Termination "Yaacovn won by resignation"]

1. e4 {[%clk 0:02:59.9]} 1... c6 {[%clk 0:03:01.5]} 2. c4 {[%clk 0:02:58.6]}
2... d5 {[%clk 0:03:03.4]} 3. exd5 {[%clk 0:02:59.5]} 3... Nf6 {[%clk 0:03:05]}
4. Nc3 {[%clk 0:02:56.5]} 4... cxd5 {[%clk 0:03:06.1]} 5. d4 {[%clk 0:02:57.5]}
5... e6 {[%clk 0:03:07.3]} 6. Nf3 {[%clk 0:02:58.3]} 6... Be7 {[%clk 0:03:08.8]}
7. Bd3 {[%clk 0:02:59.2]} 7... dxc4 {[%clk 0:03:10.1]} 8. Bxc4 {[%clk
0:02:59.8]} 8... O-O {[%clk 0:03:12]} 9. O-O {[%clk 0:03:00.8]} 9... Nc6 {[%clk
0:03:13.7]} 10. Bg5 {[%clk 0:02:57.6]} 10... b6 {[%clk 0:03:15]} 11. Bxf6 {[%clk
0:02:53.3]} 11... Bxf6 {[%clk 0:03:16]} 12. d5 {[%clk 0:02:35.7]} 12... Na5
{[%clk 0:03:17.1]} 13. Bb3 {[%clk 0:02:32.3]} 13... Nxb3 {[%clk 0:03:17.5]} 14.
axb3 {[%clk 0:02:33.3]} 14... Bxc3 {[%clk 0:03:19]} 15. bxc3 {[%clk 0:02:34.2]}
15... Qxd5 {[%clk 0:03:20.6]} 16. Qxd5 {[%clk 0:02:33.3]} 16... exd5 {[%clk
0:03:22.5]} 17. Nd4 {[%clk 0:02:34.6]} 17... Bd7 {[%clk 0:03:23.2]} 18. Rfe1
{[%clk 0:02:33.7]} 18... Rfe8 {[%clk 0:03:23.4]} 19. f3 {[%clk 0:02:22.1]} 19...
Rxe1+ {[%clk 0:03:22.7]} 20. Rxe1 {[%clk 0:02:21.9]} 20... Kf8 {[%clk
0:03:24.3]} 21. Kf2 {[%clk 0:02:19.7]} 21... a5 {[%clk 0:03:25.7]} 22. Ke3
{[%clk 0:02:19.7]} 22... Re8+ {[%clk 0:03:26.1]} 23. Kd2 {[%clk 0:02:20.5]}
23... Rxe1 {[%clk 0:03:28]} 24. Kxe1 {[%clk 0:02:21.5]} 24... Ke7 {[%clk
0:03:29.9]} 25. Kd2 {[%clk 0:02:22.5]} 25... Kd6 {[%clk 0:03:30.8]} 26. g4
{[%clk 0:02:16.4]} 26... g5 {[%clk 0:03:30.5]} 27. h3 {[%clk 0:02:15.4]} 27...
b5 {[%clk 0:03:31.7]} 28. b4 {[%clk 0:02:14.8]} 28... a4 {[%clk 0:03:32.8]} 29.
Nc2 {[%clk 0:02:14.8]} 29... f5 {[%clk 0:03:31.1]} 30. Ke3 {[%clk 0:02:14.5]}
30... Ke5 {[%clk 0:03:31.3]} 31. gxf5 {[%clk 0:02:09.8]} 31... Bxf5 {[%clk
0:03:31.9]} 32. Na3 {[%clk 0:02:10.7]} 32... Bd7 {[%clk 0:03:32.4]} 33. Nc2
{[%clk 0:02:09.6]} 33... Bxh3 {[%clk 0:03:32.7]} 34. Na3 {[%clk 0:02:07.8]}
34... Bd7 {[%clk 0:03:33.8]} 35. Nc2 {[%clk 0:02:08.7]} 35... h5 {[%clk
0:03:35.1]} 36. Ne1 {[%clk 0:02:06.9]} 36... a3 {[%clk 0:03:35.5]} 37. Nd3+
{[%clk 0:02:07.8]} 37... Kd6 {[%clk 0:03:37.1]} 38. Nc5 {[%clk 0:02:07]} 38...
a2 {[%clk 0:03:37.5]} 39. Nb3 {[%clk 0:02:07.8]} 39... Ke5 {[%clk 0:03:38.7]}
40. Na1 {[%clk 0:02:07.6]} 40... h4 {[%clk 0:03:39.9]} 41. Nc2 {[%clk
0:02:06.1]} 41... h3 {[%clk 0:03:40.4]} 42. Kf2 {[%clk 0:02:06.6]} 42... g4
{[%clk 0:03:42.3]} 43. fxg4 {[%clk 0:02:07.2]} 43... Bxg4 {[%clk 0:03:44.2]} 44.
Kg3 {[%clk 0:02:08.4]} 44... Bf5 {[%clk 0:03:46.1]} 45. Na1 {[%clk 0:02:08.8]}
45... d4 {[%clk 0:03:47.7]} 46. cxd4+ {[%clk 0:02:08.6]} 46... Kxd4 {[%clk
0:03:49.6]} 47. Nb3+ {[%clk 0:01:58.3]} 47... Kc3 {[%clk 0:03:51]} 48. Na1
{[%clk 0:01:58.9]} 48... Kb2 {[%clk 0:03:52.4]} 0-1

[Event "*** Titled Tuesday 3|2 Blitz"]
[Site "Chess.com"]
[Date "2016.03.01"]
[Round "1"]
[White "AndreyOstrovskiy"]
[Black "Rickstereo"]
[Result "1-0"]
[WhiteElo "2467"]
[BlackElo "2168"]
[TimeControl "180+2"]
[EndTime "11:36:06 PST"]
[Termination "AndreyOstrovskiy won by resignation"]

1. e4 {[%clk 0:03:01.9]} 1... c5 {[%clk 0:02:38.8]} 2. Nf3 {[%clk 0:03:01.8]}
2... Nc6 {[%clk 0:02:37.3]} 3. d4 {[%clk 0:03:02.2]} 3... cxd4 {[%clk
0:02:33.7]} 4. Nxd4 {[%clk 0:03:04.1]} 4... Nf6 {[%clk 0:02:22.5]} 5. Nc3 {[%clk
0:03:04.7]} 5... e5 {[%clk 0:02:23.2]} 6. Ndb5 {[%clk 0:03:05.8]} 6... d6 {[%clk
0:02:23.7]} 7. Bg5 {[%clk 0:03:07.4]} 7... a6 {[%clk 0:02:24.6]} 8. Na3 {[%clk
0:03:09]} 8... b5 {[%clk 0:02:25.6]} 9. Nd5 {[%clk 0:03:10.6]} 9... Be7 {[%clk
0:02:26.2]} 10. Bxf6 {[%clk 0:03:12.2]} 10... Bxf6 {[%clk 0:02:28]} 11. c4
{[%clk 0:03:13.9]} 11... b4 {[%clk 0:02:28.7]} 12. Nc2 {[%clk 0:03:14.2]} 12...
a5 {[%clk 0:02:29.8]} 13. Qf3 {[%clk 0:02:48.4]} 13... Bg5 {[%clk 0:02:28.3]}
14. h4 {[%clk 0:02:49.6]} 14... Bh6 {[%clk 0:02:25.3]} 15. g4 {[%clk 0:02:50.3]}
15... Bf4 {[%clk 0:02:25.8]} 16. Nxf4 {[%clk 0:02:44.5]} 16... Qf6 {[%clk
0:02:26.4]} 17. O-O-O {[%clk 0:02:05.8]} 17... exf4 {[%clk 0:02:12.4]} 18. g5
{[%clk 0:02:05.5]} 18... Qe7 {[%clk 0:01:54.8]} 19. e5 {[%clk 0:01:51]} 19...
Bb7 {[%clk 0:01:12.4]} 20. exd6 {[%clk 0:01:49.9]} 20... Qd7 {[%clk 0:01:10.3]}
21. Bh3 {[%clk 0:01:39.5]} 1-0

[Event "*** Titled Tuesday 3|2 Blitz"]
[Site "Chess.com"]
[Date "2016.03.01"]
[Round "1"]
[White "MITerryble"]
[Black "lionheart95"]
[Result "1-0"]
[WhiteElo "2628"]
[BlackElo "2342"]
[TimeControl "180+2"]
[EndTime "11:37:12 PST"]
[Termination "MITerryble won by resignation"]

1. d4 {[%clk 0:02:58.2]} 1... Nf6 {[%clk 0:02:59.5]} 2. Nf3 {[%clk 0:02:59]}
2... g6 {[%clk 0:02:56.3]} 3. Bg5 {[%clk 0:02:58.6]} 3... Bg7 {[%clk 0:02:57.2]}
4. Nbd2 {[%clk 0:02:42.6]} 4... d5 {[%clk 0:02:48]} 5. c3 {[%clk 0:02:43.6]}
5... O-O {[%clk 0:02:46.9]} 6. e3 {[%clk 0:02:44.8]} 6... Bf5 {[%clk 0:02:45.5]}
7. Qb3 {[%clk 0:02:44.3]} 7... b6 {[%clk 0:02:44.9]} 8. a4 {[%clk 0:02:42.1]}
8... a5 {[%clk 0:02:44.1]} 9. Be2 {[%clk 0:02:42.4]} 9... Nbd7 {[%clk
0:02:38.6]} 10. Bb5 {[%clk 0:02:40.5]} 10... h6 {[%clk 0:02:28.3]} 11. Bh4
{[%clk 0:02:38.9]} 11... g5 {[%clk 0:02:28.6]} 12. Bg3 {[%clk 0:02:39.8]} 12...
c5 {[%clk 0:02:25.7]} 13. Bc6 {[%clk 0:02:36.7]} 13... c4 {[%clk 0:02:24.1]} 14.
Qb5 {[%clk 0:02:25.1]} 14... Rc8 {[%clk 0:02:02.8]} 15. Bxd5 {[%clk 0:02:04.6]}
15... Nxd5 {[%clk 0:02:02.9]} 16. Qxd5 {[%clk 0:02:04.8]} 16... Bd3 {[%clk
0:02:04.5]} 17. Qb5 {[%clk 0:01:35.7]} 17... e6 {[%clk 0:01:57]} 18. b3 {[%clk
0:01:30.4]} 18... Nf6 {[%clk 0:01:47.7]} 19. Ne5 {[%clk 0:01:25.6]} 19... Nd5
{[%clk 0:01:46.4]} 20. bxc4 {[%clk 0:01:14]} 20... Bxe5 {[%clk 0:01:45.7]} 21.
Bxe5 {[%clk 0:01:14.7]} 21... Nf6 {[%clk 0:01:41.7]} 22. f3 {[%clk 0:01:08]}
22... Nd7 {[%clk 0:01:41.3]} 23. Bd6 {[%clk 0:01:06.8]} 23... Re8 {[%clk
0:01:41.7]} 24. Kf2 {[%clk 0:01:05.2]} 24... e5 {[%clk 0:01:31.5]} 25. Rhe1
{[%clk 0:00:59.8]} 25... Qf6 {[%clk 0:01:30.1]} 26. Qxd7 {[%clk 0:00:57.8]}
26... Rcd8 {[%clk 0:01:28.9]} 27. Bxe5 {[%clk 0:00:55.2]} 27... Qxe5 {[%clk
0:01:25.7]} 28. Qxd8 {[%clk 0:00:49.5]} 1-0

[Event "*** Titled Tuesday 3|2 Blitz"]
[Site "Chess.com"]
[Date "2016.03.01"]
[Round "1"]
[White "Gevorg_Harutjunyan"]
[Black "GianmarcoVaR"]
[Result "1-0"]
[WhiteElo "2612"]
[BlackElo "2341"]
[TimeControl "180+2"]
[EndTime "11:39:01 PST"]
[Termination "Gevorg_Harutjunyan won by resignation"]

1. e4 {[%clk 0:03:01.7]} 1... c6 {[%clk 0:02:55.7]} 2. d4 {[%clk 0:03:00.8]}
2... d5 {[%clk 0:02:56.8]} 3. e5 {[%clk 0:02:59.6]} 3... Bf5 {[%clk 0:02:57.9]}
4. Nf3 {[%clk 0:02:59.4]} 4... e6 {[%clk 0:02:58.6]} 5. Be2 {[%clk 0:03:00]}
5... Nd7 {[%clk 0:02:59.5]} 6. O-O {[%clk 0:03:00.6]} 6... h5 {[%clk 0:03:00]}
7. b3 {[%clk 0:02:57.6]} 7... Nh6 {[%clk 0:02:43.1]} 8. c4 {[%clk 0:02:56.4]}
8... a6 {[%clk 0:02:44]} 9. Nc3 {[%clk 0:02:53.8]} 9... b5 {[%clk 0:02:44.2]}
10. Bg5 {[%clk 0:02:49.2]} 10... f6 {[%clk 0:02:41.1]} 11. exf6 {[%clk
0:02:47.3]} 11... gxf6 {[%clk 0:02:42.1]} 12. Bf4 {[%clk 0:02:25.7]} 12... Bb4
{[%clk 0:01:41.9]} 13. Rc1 {[%clk 0:02:25.5]} 13... Qa5 {[%clk 0:01:39.8]} 14.
Qd2 {[%clk 0:02:06.8]} 14... Nf7 {[%clk 0:01:23.7]} 15. cxd5 {[%clk 0:01:56.3]}
15... cxd5 {[%clk 0:01:19.2]} 16. Qe3 {[%clk 0:01:57.7]} 16... Ba3 {[%clk
0:00:28.2]} 17. Nxd5 {[%clk 0:01:28.8]} 17... Bxc1 {[%clk 0:00:28.9]} 18. Rxc1
{[%clk 0:01:29.6]} 18... Kf8 {[%clk 0:00:21.7]} 19. Nc7 {[%clk 0:01:21.2]} 19...
Rd8 {[%clk 0:00:17]} 20. Nxe6+ {[%clk 0:01:17.3]} 20... Bxe6 {[%clk 0:00:17.9]}
21. Bc7 {[%clk 0:01:18.8]} 21... Qa3 {[%clk 0:00:13]} 22. Bxd8 {[%clk
0:01:19.8]} 22... Nxd8 {[%clk 0:00:14]} 23. Nh4 {[%clk 0:01:19.4]} 23... Qd6
{[%clk 0:00:09.2]} 24. Ng6+ {[%clk 0:01:18.1]} 24... Kg7 {[%clk 0:00:10.8]} 25.
Nxh8 {[%clk 0:01:18.9]} 25... Kxh8 {[%clk 0:00:12.4]} 26. Bxh5 {[%clk
0:01:03.1]} 26... Kg7 {[%clk 0:00:13.6]} 27. Bf3 {[%clk 0:00:58.3]} 27... Nb6
{[%clk 0:00:13.5]} 28. h4 {[%clk 0:00:53.3]} 28... Nf7 {[%clk 0:00:14.4]} 29.
Rc6 {[%clk 0:00:52]} 29... Nd5 {[%clk 0:00:09.7]} 30. Qxe6 {[%clk 0:00:41.5]}
30... Qxe6 {[%clk 0:00:06.5]} 31. Rxe6 {[%clk 0:00:42.3]} 31... Nb4 {[%clk
0:00:06.2]} 32. a3 {[%clk 0:00:41.7]} 32... Nc2 {[%clk 0:00:07]} 33. d5 {[%clk
0:00:40.4]} 33... Ne5 {[%clk 0:00:06.3]} 34. d6 {[%clk 0:00:40.6]} 34... Kf8
{[%clk 0:00:07.2]} 35. Rxf6+ {[%clk 0:00:39.1]} 35... Ke8 {[%clk 0:00:07.3]} 1-0

[Event "*** Titled Tuesday 3|2 Blitz"]
[Site "Chess.com"]
[Date "2016.03.01"]
[Round "1"]
[White "Grootneus"]
[Black "viditchess"]
[Result "0-1"]
[WhiteElo "2038"]
[BlackElo "2410"]
[TimeControl "180+2"]
[EndTime "11:39:07 PST"]
[Termination "viditchess won by checkmate"]

1. e4 {[%clk 0:02:17.3]} 1... e6 {[%clk 0:02:59.3]} 2. d4 {[%clk 0:02:18.3]}
2... d5 {[%clk 0:03:00.5]} 3. Nc3 {[%clk 0:02:20]} 3... Nf6 {[%clk 0:03:00.9]}
4. Bg5 {[%clk 0:02:18.8]} 4... dxe4 {[%clk 0:03:01.2]} 5. Nxe4 {[%clk
0:02:20.7]} 5... Be7 {[%clk 0:03:02.8]} 6. Bxf6 {[%clk 0:02:21.9]} 6... gxf6
{[%clk 0:03:04.7]} 7. Nf3 {[%clk 0:02:22.4]} 7... f5 {[%clk 0:02:58.7]} 8. Ned2
{[%clk 0:02:22.3]} 8... c5 {[%clk 0:02:58.4]} 9. dxc5 {[%clk 0:02:08.1]} 9...
Bxc5 {[%clk 0:02:59.2]} 10. Bd3 {[%clk 0:02:05.8]} 10... Nc6 {[%clk 0:02:58.7]}
11. Qe2 {[%clk 0:02:04.6]} 11... Qf6 {[%clk 0:02:48.9]} 12. O-O-O {[%clk
0:02:03.5]} 12... Bd7 {[%clk 0:02:47.7]} 13. Nb3 {[%clk 0:01:56.6]} 13... Bb6
{[%clk 0:02:48.1]} 14. Nfd2 {[%clk 0:01:39.4]} 14... Ne5 {[%clk 0:02:37.8]} 15.
Bb5 {[%clk 0:01:32.6]} 15... O-O-O {[%clk 0:02:33.8]} 16. f4 {[%clk 0:01:29.5]}
16... Ng4 {[%clk 0:01:29.1]} 17. Nc4 {[%clk 0:01:10.9]} 17... Bxb5 {[%clk
0:01:01.2]} 18. Nxb6+ {[%clk 0:01:11.3]} 18... axb6 {[%clk 0:01:03.1]} 19. Qxb5
{[%clk 0:01:04.9]} 19... Ne3 {[%clk 0:01:02.4]} 20. Rxd8+ {[%clk 0:00:59.6]}
20... Rxd8 {[%clk 0:01:04.3]} 21. g3 {[%clk 0:00:42.4]} 21... Rd5 {[%clk
0:00:38.5]} 22. Qa4 {[%clk 0:00:26.5]} 22... Qe7 {[%clk 0:00:17.9]} 23. Re1
{[%clk 0:00:18.8]} 23... Qd6 {[%clk 0:00:18.1]} 24. Qa8+ {[%clk 0:00:08.7]}
24... Kc7 {[%clk 0:00:18.9]} 25. Nd2 {[%clk 0:00:03.8]} 25... Rxd2 {[%clk
0:00:19.6]} 26. b3 {[%clk 0:00:05.2]} 26... Rd1+ {[%clk 0:00:19.7]} 27. Rxd1
{[%clk 0:00:06.7]} 27... Qxd1+ {[%clk 0:00:21.5]} 28. Kb2 {[%clk 0:00:08.4]}
28... Qxc2+ {[%clk 0:00:22.8]} 29. Ka3 {[%clk 0:00:10.1]} 29... Qc3 {[%clk
0:00:19.7]} 30. Qe8 {[%clk 0:00:04.5]} 30... Nc2+ {[%clk 0:00:20.7]} 31. Ka4
{[%clk 0:00:05.5]} 31... Qb4# {[%clk 0:00:21.7]} 0-1

[Event "*** Titled Tuesday 3|2 Blitz"]
[Site "Chess.com"]
[Date "2016.03.01"]
[Round "1"]
[White "VerdeNotte"]
[Black "D-Prawira"]
[Result "1-0"]
[WhiteElo "2503"]
[BlackElo "2209"]
[TimeControl "180+2"]
[EndTime "11:39:41 PST"]
[Termination "VerdeNotte won on time"]

1. g3 {[%clk 0:03:01.9]} 1... Nf6 {[%clk 0:02:59.9]} 2. Bg2 {[%clk 0:03:03.1]}
2... g6 {[%clk 0:03:00.6]} 3. e4 {[%clk 0:03:04.1]} 3... d6 {[%clk 0:03:00.8]}
4. d4 {[%clk 0:03:04.9]} 4... Bg7 {[%clk 0:03:01]} 5. Ne2 {[%clk 0:03:06]} 5...
e5 {[%clk 0:03:02]} 6. dxe5 {[%clk 0:03:05.7]} 6... dxe5 {[%clk 0:03:03]} 7.
Qxd8+ {[%clk 0:03:07.6]} 7... Kxd8 {[%clk 0:03:04.3]} 8. Nbc3 {[%clk 0:03:08.1]}
8... c6 {[%clk 0:03:04.9]} 9. h3 {[%clk 0:03:07.5]} 9... Be6 {[%clk 0:02:57.8]}
10. Be3 {[%clk 0:03:07.7]} 10... Nbd7 {[%clk 0:02:58]} 11. a4 {[%clk 0:03:06.6]}
11... Ke7 {[%clk 0:02:55.4]} 12. b3 {[%clk 0:03:03.3]} 12... Rhd8 {[%clk
0:02:48.9]} 13. Bc1 {[%clk 0:03:01.9]} 13... Kf8 {[%clk 0:02:46.5]} 14. Ba3+
{[%clk 0:03:00.9]} 14... Kg8 {[%clk 0:02:47.4]} 15. Be7 {[%clk 0:03:01.9]} 15...
Re8 {[%clk 0:02:46.9]} 16. Bd6 {[%clk 0:03:03.1]} 16... Bf8 {[%clk 0:02:38.6]}
17. O-O-O {[%clk 0:03:04.1]} 17... Rad8 {[%clk 0:02:15.9]} 18. Bc7 {[%clk
0:03:02.8]} 18... Rc8 {[%clk 0:02:16.2]} 19. Bd6 {[%clk 0:03:04.1]} 19... Rcd8
{[%clk 0:02:17.1]} 20. Kb2 {[%clk 0:03:03.9]} 20... Bxd6 {[%clk 0:02:10.7]} 21.
Rxd6 {[%clk 0:03:05.8]} 21... Nc5 {[%clk 0:02:06.4]} 22. Rhd1 {[%clk 0:03:05.2]}
22... Rxd6 {[%clk 0:02:06]} 23. Rxd6 {[%clk 0:03:07.1]} 23... Kg7 {[%clk
0:01:51.3]} 24. f4 {[%clk 0:03:07.8]} 24... Bc8 {[%clk 0:01:44.5]} 25. b4 {[%clk
0:03:03.4]} 25... Na6 {[%clk 0:01:42.1]} 26. Ka3 {[%clk 0:03:00.7]} 26... Nc7
{[%clk 0:01:34.7]} 27. b5 {[%clk 0:03:00.8]} 27... cxb5 {[%clk 0:01:32.5]} 28.
axb5 {[%clk 0:03:02]} 28... exf4 {[%clk 0:01:32.6]} 29. gxf4 {[%clk 0:03:02.3]}
29... Ne6 {[%clk 0:01:31.6]} 30. e5 {[%clk 0:02:58]} 30... Nh5 {[%clk
0:01:30.3]} 31. Nd5 {[%clk 0:02:57.3]} 31... b6 {[%clk 0:01:20.8]} 32. Bf3
{[%clk 0:02:56.1]} 32... Bb7 {[%clk 0:01:12]} 33. Bxh5 {[%clk 0:02:49.9]} 33...
Bxd5 {[%clk 0:01:08.8]} 34. Rxd5 {[%clk 0:02:51.8]} 34... gxh5 {[%clk
0:01:08.1]} 35. f5 {[%clk 0:02:52.7]} 35... Nc5 {[%clk 0:01:06.1]} 36. Nf4
{[%clk 0:02:51.7]} 36... h4 {[%clk 0:01:03.6]} 37. Nh5+ {[%clk 0:02:44.8]} 37...
Kh6 {[%clk 0:01:00.9]} 38. Nf6 {[%clk 0:02:45.8]} 38... Rc8 {[%clk 0:00:56]} 39.
Rd2 {[%clk 0:02:28.7]} 39... Kg5 {[%clk 0:00:52]} 40. Rf2 {[%clk 0:02:29.6]}
40... h6 {[%clk 0:00:48]} 41. Nh7+ {[%clk 0:02:30]} 41... Kh5 {[%clk 0:00:47.1]}
42. Rg2 {[%clk 0:02:30.9]} 42... Ne4 {[%clk 0:00:43]} 43. Rg4 {[%clk 0:02:24.8]}
43... Rc4 {[%clk 0:00:22.7]} 44. Nf6+ {[%clk 0:02:18.4]} 44... Nxf6 {[%clk
0:00:22]} 45. Rxc4 {[%clk 0:02:20.3]} 45... Nd5 {[%clk 0:00:14.7]} 46. e6 {[%clk
0:01:57.9]} 46... fxe6 {[%clk 0:00:14.8]} 47. fxe6 {[%clk 0:01:59.6]} 47... Kg5
{[%clk 0:00:13.4]} 48. Rd4 {[%clk 0:01:56.1]} 48... Nc3 {[%clk 0:00:11]} 49. e7
{[%clk 0:01:55.3]} 49... Nxb5+ {[%clk 0:00:11.3]} 50. Kb2 {[%clk 0:01:56.3]}
50... Nxd4 {[%clk 0:00:11.6]} 51. e8=Q {[%clk 0:01:57.3]} 51... Nf5 {[%clk
0:00:12.9]} 52. Qe5 {[%clk 0:01:53.7]} 52... Kg6 {[%clk 0:00:11.9]} 53. Qe6+
{[%clk 0:01:52.7]} 53... Kg5 {[%clk 0:00:12.8]} 54. c4 {[%clk 0:01:51]} 54... h5
{[%clk 0:00:11.9]} 55. Qe5 {[%clk 0:01:48.2]} 55... Kg6 {[%clk 0:00:12]} 56. Kc3
{[%clk 0:01:48.6]} 56... Kg5 {[%clk 0:00:12.6]} 57. Kb4 {[%clk 0:01:47.2]} 57...
Kg6 {[%clk 0:00:12.1]} 58. Kb5 {[%clk 0:01:47.9]} 58... Kg5 {[%clk 0:00:02.3]}
59. Ka6 {[%clk 0:01:47.6]} 59... Kg6 {[%clk 0:00:03.4]} 60. Kxa7 {[%clk
0:01:48.4]} 1-0

[Event "*** Titled Tuesday 3|2 Blitz"]
[Site "Chess.com"]
[Date "2016.03.01"]
[Round "1"]
[White "spectralsoul"]
[Black "ftorodent"]
[Result "1-0"]
[WhiteElo "2571"]
[BlackElo "2299"]
[TimeControl "180+2"]
[EndTime "11:40:56 PST"]
[Termination "spectralsoul won on time"]

1. g3 {[%clk 0:03:01.9]} 1... d5 {[%clk 0:02:59.3]} 2. Bg2 {[%clk 0:03:03.1]}
2... c6 {[%clk 0:03:00.3]} 3. c4 {[%clk 0:03:02.9]} 3... Nf6 {[%clk 0:02:55]} 4.
cxd5 {[%clk 0:03:00.2]} 4... cxd5 {[%clk 0:02:55.8]} 5. Nf3 {[%clk 0:03:01.7]}
5... Nc6 {[%clk 0:02:56.6]} 6. O-O {[%clk 0:03:02.2]} 6... Bg4 {[%clk
0:02:57.1]} 7. Qa4 {[%clk 0:03:00.9]} 7... Bxf3 {[%clk 0:02:55.2]} 8. Bxf3
{[%clk 0:03:02.8]} 8... e6 {[%clk 0:02:56.3]} 9. d3 {[%clk 0:03:03.8]} 9... Be7
{[%clk 0:02:49.3]} 10. a3 {[%clk 0:03:03.7]} 10... O-O {[%clk 0:02:48.9]} 11.
Nc3 {[%clk 0:03:04.9]} 11... Nd7 {[%clk 0:02:46.3]} 12. Qd1 {[%clk 0:03:01.9]}
12... Bf6 {[%clk 0:02:39.5]} 13. Bd2 {[%clk 0:03:01.9]} 13... Rc8 {[%clk
0:02:38.4]} 14. Rc1 {[%clk 0:03:02.7]} 14... a6 {[%clk 0:02:26.9]} 15. b4 {[%clk
0:02:59.9]} 15... Nd4 {[%clk 0:02:21.6]} 16. Bg2 {[%clk 0:03:01]} 16... Qe7
{[%clk 0:02:20.2]} 17. e3 {[%clk 0:02:59.7]} 17... Nc6 {[%clk 0:02:20.7]} 18.
Qb3 {[%clk 0:02:46]} 18... Rfd8 {[%clk 0:02:17]} 19. Na4 {[%clk 0:02:46.4]}
19... Na7 {[%clk 0:02:02.9]} 20. d4 {[%clk 0:02:31.5]} 20... Nb5 {[%clk
0:01:57.2]} 21. Nc5 {[%clk 0:02:32.1]} 21... Nb6 {[%clk 0:01:58]} 22. Rc2 {[%clk
0:02:27]} 22... Nd6 {[%clk 0:01:55.6]} 23. Rfc1 {[%clk 0:02:25]} 23... Nbc4
{[%clk 0:01:56.6]} 24. Be1 {[%clk 0:02:26.6]} 24... Rc6 {[%clk 0:01:49.6]} 25.
a4 {[%clk 0:02:26.9]} 25... Rdc8 {[%clk 0:01:39]} 26. h3 {[%clk 0:02:26.9]}
26... h6 {[%clk 0:01:38.4]} 27. Kh2 {[%clk 0:02:26.6]} 27... h5 {[%clk
0:01:30.7]} 28. h4 {[%clk 0:02:24.5]} 28... b5 {[%clk 0:01:20.3]} 29. Ra2 {[%clk
0:02:07.8]} 29... Nf5 {[%clk 0:01:18.7]} 30. Rca1 {[%clk 0:02:02.4]} 30... g5
{[%clk 0:01:02.6]} 31. hxg5 {[%clk 0:02:03]} 31... Bxg5 {[%clk 0:01:03.2]} 32.
axb5 {[%clk 0:02:04.1]} 32... axb5 {[%clk 0:01:03.8]} 33. Ra7 {[%clk 0:02:05.1]}
33... R6c7 {[%clk 0:01:04.5]} 34. Ra8 {[%clk 0:02:05.3]} 34... Nh6 {[%clk
0:00:43]} 35. Bf3 {[%clk 0:01:56.1]} 35... Ng4+ {[%clk 0:00:39]} 36. Kg2 {[%clk
0:01:47.7]} 36... Qf6 {[%clk 0:00:39.2]} 37. e4 {[%clk 0:01:21.5]} 37... Qxd4
{[%clk 0:00:29.3]} 38. Rxc8+ {[%clk 0:01:19.3]} 38... Rxc8 {[%clk 0:00:29.6]}
39. Rd1 {[%clk 0:01:12.1]} 39... Nce3+ {[%clk 0:00:29.7]} 40. fxe3 {[%clk
0:01:13.2]} 40... Nxe3+ {[%clk 0:00:30.7]} 41. Kh1 {[%clk 0:00:43.7]} 41... Nxd1
{[%clk 0:00:31.5]} 42. Bxd1 {[%clk 0:00:45.3]} 42... dxe4 {[%clk 0:00:31.6]} 43.
Bxh5 {[%clk 0:00:45.8]} 43... Qd5 {[%clk 0:00:22.4]} 44. Qc2 {[%clk 0:00:32.2]}
44... e3+ {[%clk 0:00:21.6]} 45. Kh2 {[%clk 0:00:31.9]} 45... Ra8 {[%clk
0:00:22.4]} 46. Nb3 {[%clk 0:00:25.9]} 46... Qc4 {[%clk 0:00:21.1]} 47. Qb1
{[%clk 0:00:20.6]} 47... Rc8 {[%clk 0:00:19.9]} 48. Kh3 {[%clk 0:00:20.1]} 48...
Qf1+ {[%clk 0:00:19.5]} 49. Kh2 {[%clk 0:00:19]} 49... Qc4 {[%clk 0:00:18.8]}
50. Nc5 {[%clk 0:00:18.4]} 50... Ra8 {[%clk 0:00:18.3]} 51. Nb3 {[%clk
0:00:17.8]} 51... Ra3 {[%clk 0:00:18.8]} 52. Nc1 {[%clk 0:00:18.3]} 52... e2
{[%clk 0:00:18.1]} 53. Bxf7+ {[%clk 0:00:15.9]} 53... Kg7 {[%clk 0:00:11.5]} 54.
Qg6+ {[%clk 0:00:16.5]} 54... Kf8 {[%clk 0:00:11.6]} 55. Bxe6 {[%clk 0:00:17.9]}
1-0